[Event "Early-Titled-Tuesday-Blitz-January-30-2024"]
[Site "Chess.com"]
[Date "2024.01.30"]
[Round "9"]
[White "Xsu11"]
[Black "OneTrickPony_82"]
[Result "0-1"]
[WhiteElo "2334"]
[BlackElo "2510"]
[TimeControl "180+1"]
[EndTime "9:48:15 PST"]
[Termination "OneTrickPony_82 won on time"]

1. Nf3 {[%clk 0:03:00.3]} 1... Nf6 {[%clk 0:02:59.7]} 2. g3 {[%clk 0:02:59.7]}
2... c5 {[%clk 0:02:58.9]} 3. Bg2 {[%clk 0:02:57.5]} 3... Nc6 {[%clk 0:02:59.5]}
4. O-O {[%clk 0:02:56.5]} 4... d5 {[%clk 0:03:00]} 5. d3 {[%clk 0:02:56]} 5...
e5 {[%clk 0:02:57.6]} 6. Nbd2 {[%clk 0:02:54.2]} 6... Bd6 {[%clk 0:02:55.5]} 7.
e4 {[%clk 0:02:53.8]} 7... d4 {[%clk 0:02:55.3]} 8. Nh4 {[%clk 0:02:36.9]} 8...
O-O {[%clk 0:02:51.9]} 9. h3 {[%clk 0:02:25.8]} 9... Bc7 {[%clk 0:02:34.1]} 10.
a4 {[%clk 0:01:57.6]} 10... a6 {[%clk 0:02:32.4]} 11. Nc4 {[%clk 0:01:44.1]}
11... Rb8 {[%clk 0:02:28.4]} 12. Bg5 {[%clk 0:00:55.2]} 12... b5 {[%clk
0:02:10.6]} 13. axb5 {[%clk 0:00:53.7]} 13... axb5 {[%clk 0:02:10.8]} 14. Nd2
{[%clk 0:00:52.5]} 14... h6 {[%clk 0:02:09.7]} 15. Bxf6 {[%clk 0:00:51.5]} 15...
Qxf6 {[%clk 0:02:10.4]} 16. Qh5 {[%clk 0:00:39.1]} 16... Qg5 {[%clk 0:01:59.4]}
17. Qe2 {[%clk 0:00:33.7]} 17... Nb4 {[%clk 0:01:42.7]} 18. Nb3 {[%clk
0:00:33.1]} 18... Qe7 {[%clk 0:01:33.6]} 19. c3 {[%clk 0:00:31]} 19... Nc6
{[%clk 0:01:25.1]} 20. Nf5 {[%clk 0:00:30.4]} 20... Qf6 {[%clk 0:00:58]} 21. g4
{[%clk 0:00:27.9]} 21... g6 {[%clk 0:00:49]} 22. Ng3 {[%clk 0:00:26.6]} 22...
Qe7 {[%clk 0:00:46.3]} 23. Rfc1 {[%clk 0:00:23.6]} 23... Be6 {[%clk 0:00:45.5]}
24. Nd2 {[%clk 0:00:13.8]} 24... dxc3 {[%clk 0:00:44.6]} 25. bxc3 {[%clk
0:00:13.7]} 25... b4 {[%clk 0:00:45.3]} 26. cxb4 {[%clk 0:00:10.1]} 26... Nd4
{[%clk 0:00:45.9]} 27. Qf1 {[%clk 0:00:09.2]} 27... cxb4 {[%clk 0:00:46.5]} 28.
Ra7 {[%clk 0:00:07.5]} 28... Rfc8 {[%clk 0:00:44.6]} 29. Nc4 {[%clk 0:00:06.7]}
29... Bxc4 {[%clk 0:00:44.3]} 30. Rxc4 {[%clk 0:00:04.6]} 30... b3 {[%clk
0:00:44.9]} 31. Ne2 {[%clk 0:00:04.4]} 31... Nxe2+ {[%clk 0:00:43.7]} 32. Qxe2
{[%clk 0:00:04.7]} 32... b2 {[%clk 0:00:44.6]} 33. Kh2 {[%clk 0:00:01.6]} 33...
b1=Q {[%clk 0:00:44.5]} 34. Bf1 {[%clk 0:00:02.2]} 34... Qf6 {[%clk 0:00:44.8]}
35. d4 {[%clk 0:00:01.7]} 35... Qf4+ {[%clk 0:00:45.1]} 36. Kg2 {[%clk
0:00:01.6]} 36... Qbxe4+ {[%clk 0:00:45.6]} 0-1

[Event "Early-Titled-Tuesday-Blitz-January-30-2024"]
[Site "Chess.com"]
[Date "2024.01.30"]
[Round "9"]
[White "Muracle"]
[Black "UnTucopalaTimba"]
[Result "0-1"]
[WhiteElo "2488"]
[BlackElo "1935"]
[TimeControl "180+1"]
[EndTime "9:48:17 PST"]
[Termination "UnTucopalaTimba won on time"]

1. Nf3 {[%clk 0:03:00.9]} 1... d5 {[%clk 0:02:58]} 2. b3 {[%clk 0:03:01.2]} 2...
Nf6 {[%clk 0:02:55.7]} 3. Bb2 {[%clk 0:03:00.7]} 3... Nc6 {[%clk 0:02:54.7]} 4.
e3 {[%clk 0:03:00]} 4... a6 {[%clk 0:02:53.6]} 5. c4 {[%clk 0:02:58.1]} 5... Bg4
{[%clk 0:02:49.3]} 6. Be2 {[%clk 0:02:56.7]} 6... dxc4 {[%clk 0:02:45.1]} 7.
Bxc4 {[%clk 0:02:55.5]} 7... e6 {[%clk 0:02:45]} 8. h3 {[%clk 0:02:53.1]} 8...
Bh5 {[%clk 0:02:44.5]} 9. O-O {[%clk 0:02:51.4]} 9... Be7 {[%clk 0:02:42.8]} 10.
Nc3 {[%clk 0:02:46.3]} 10... O-O {[%clk 0:02:39.4]} 11. d4 {[%clk 0:02:41.4]}
11... b5 {[%clk 0:02:32.7]} 12. Be2 {[%clk 0:02:38.4]} 12... Rc8 {[%clk
0:02:25]} 13. Rc1 {[%clk 0:02:35.8]} 13... Nb4 {[%clk 0:02:19.6]} 14. a3 {[%clk
0:02:34.7]} 14... Nbd5 {[%clk 0:02:17.9]} 15. b4 {[%clk 0:02:32.3]} 15... Nxc3
{[%clk 0:02:11.7]} 16. Bxc3 {[%clk 0:02:33.2]} 16... Nd5 {[%clk 0:02:10.6]} 17.
Bd2 {[%clk 0:02:18.3]} 17... a5 {[%clk 0:01:55.5]} 18. bxa5 {[%clk 0:02:13.9]}
18... Bxa3 {[%clk 0:01:54.5]} 19. Ra1 {[%clk 0:02:11.6]} 19... Bb4 {[%clk
0:01:42.4]} 20. e4 {[%clk 0:02:07.8]} 20... Nc3 {[%clk 0:01:29.7]} 21. Qe1
{[%clk 0:01:47.3]} 21... Nxe2+ {[%clk 0:01:21.2]} 22. Qxe2 {[%clk 0:01:48.2]}
22... Bxf3 {[%clk 0:01:19.3]} 23. gxf3 {[%clk 0:01:45.5]} 23... Qxd4 {[%clk
0:01:07.1]} 24. Bxb4 {[%clk 0:01:42.8]} 24... Qxb4 {[%clk 0:01:05.6]} 25. Rfb1
{[%clk 0:01:42.9]} 25... Qd4 {[%clk 0:00:59.2]} 26. Qxb5 {[%clk 0:01:36.5]}
26... c5 {[%clk 0:00:53.9]} 27. a6 {[%clk 0:01:34]} 27... Qe5 {[%clk 0:00:45.8]}
28. a7 {[%clk 0:01:31.6]} 28... Ra8 {[%clk 0:00:44.3]} 29. Qb7 {[%clk
0:01:17.1]} 29... h6 {[%clk 0:00:38.3]} 30. Rb5 {[%clk 0:01:04.4]} 30... Qxa1+
{[%clk 0:00:36.7]} 31. Kg2 {[%clk 0:00:52.9]} 31... Rxa7 {[%clk 0:00:34.9]} 0-1

[Event "Early-Titled-Tuesday-Blitz-January-30-2024"]
[Site "Chess.com"]
[Date "2024.01.30"]
[Round "9"]
[White "frederiksvane"]
[Black "FormerProdigy"]
[Result "0-1"]
[WhiteElo "2920"]
[BlackElo "3034"]
[TimeControl "180+1"]
[EndTime "9:48:19 PST"]
[Termination "FormerProdigy won by checkmate"]

1. e4 {[%clk 0:03:00.9]} 1... e5 {[%clk 0:03:00]} 2. Nf3 {[%clk 0:03:00.9]} 2...
Nc6 {[%clk 0:03:00.6]} 3. Bc4 {[%clk 0:02:57.9]} 3... Bc5 {[%clk 0:03:00]} 4. c3
{[%clk 0:02:56]} 4... Nf6 {[%clk 0:03:00.3]} 5. d3 {[%clk 0:02:56.6]} 5... d6
{[%clk 0:02:59.9]} 6. O-O {[%clk 0:02:55.5]} 6... O-O {[%clk 0:02:59.5]} 7. Bg5
{[%clk 0:02:54.7]} 7... h6 {[%clk 0:02:56.8]} 8. Bh4 {[%clk 0:02:55.1]} 8... g5
{[%clk 0:02:52.9]} 9. Bg3 {[%clk 0:02:55.2]} 9... Bb6 {[%clk 0:02:43.2]} 10.
Nbd2 {[%clk 0:02:52.9]} 10... Kg7 {[%clk 0:02:30.3]} 11. Bb3 {[%clk 0:02:53]}
11... Nh7 {[%clk 0:02:24.3]} 12. Kh1 {[%clk 0:02:49.1]} 12... f5 {[%clk
0:02:17.1]} 13. exf5 {[%clk 0:02:48.8]} 13... Bxf5 {[%clk 0:02:18]} 14. Qe2
{[%clk 0:02:30.1]} 14... Qd7 {[%clk 0:02:10.3]} 15. Rae1 {[%clk 0:02:25.8]}
15... Rae8 {[%clk 0:02:09.8]} 16. h3 {[%clk 0:02:17.4]} 16... g4 {[%clk
0:01:58.3]} 17. hxg4 {[%clk 0:02:15.6]} 17... Bxg4 {[%clk 0:01:59.2]} 18. Qe4
{[%clk 0:01:11.9]} 18... Nf6 {[%clk 0:01:59]} 19. Qa4 {[%clk 0:01:12.1]} 19...
Nh5 {[%clk 0:01:59.2]} 20. Bd5 {[%clk 0:01:02.4]} 20... Nf6 {[%clk 0:01:43.4]}
21. Bxc6 {[%clk 0:00:58.5]} 21... bxc6 {[%clk 0:01:44.3]} 22. d4 {[%clk
0:00:41.1]} 22... Nh5 {[%clk 0:01:22.3]} 23. dxe5 {[%clk 0:00:38]} 23... Bxf3
{[%clk 0:01:22.7]} 24. Nxf3 {[%clk 0:00:34.4]} 24... Nxg3+ {[%clk 0:00:51.1]}
25. fxg3 {[%clk 0:00:32.9]} 25... dxe5 {[%clk 0:00:49.9]} 26. Qe4 {[%clk
0:00:29.9]} 26... Qf5 {[%clk 0:00:45.7]} 27. Qxc6 {[%clk 0:00:21.6]} 27... Qh5+
{[%clk 0:00:40.7]} 28. Nh2 {[%clk 0:00:20.2]} 28... Bf2 {[%clk 0:00:36.5]} 29.
Re4 {[%clk 0:00:03.3]} 29... Bxg3 {[%clk 0:00:36.6]} 30. Qd7+ {[%clk 0:00:01.6]}
30... Kh8 {[%clk 0:00:31.4]} 31. Rxf8+ {[%clk 0:00:01.9]} 31... Rxf8 {[%clk
0:00:31.4]} 32. Qh3 {[%clk 0:00:02.6]} 32... Qd1+ {[%clk 0:00:30.5]} 33. Nf1
{[%clk 0:00:02.5]} 33... Qxf1# {[%clk 0:00:30.6]} 0-1

[Event "Early-Titled-Tuesday-Blitz-January-30-2024"]
[Site "Chess.com"]
[Date "2024.01.30"]
[Round "9"]
[White "ContrVersia"]
[Black "Vsevolod_Ovchinnikov"]
[Result "1-0"]
[WhiteElo "2840"]
[BlackElo "2643"]
[TimeControl "180+1"]
[EndTime "9:48:19 PST"]
[Termination "ContrVersia won on time"]

1. Nf3 {[%clk 0:02:56.9]} 1... Nf6 {[%clk 0:02:58.4]} 2. c4 {[%clk 0:02:56.6]}
2... g6 {[%clk 0:02:58.3]} 3. g3 {[%clk 0:02:56.2]} 3... Bg7 {[%clk 0:02:58.3]}
4. Bg2 {[%clk 0:02:55.9]} 4... d5 {[%clk 0:02:59.1]} 5. cxd5 {[%clk 0:02:55.6]}
5... Nxd5 {[%clk 0:03:00]} 6. d4 {[%clk 0:02:55.8]} 6... Nb6 {[%clk 0:02:59.4]}
7. O-O {[%clk 0:02:55]} 7... Nc6 {[%clk 0:03:00.1]} 8. e3 {[%clk 0:02:54.3]}
8... e5 {[%clk 0:02:43.7]} 9. Nc3 {[%clk 0:02:53.2]} 9... exd4 {[%clk
0:02:41.5]} 10. exd4 {[%clk 0:02:54.1]} 10... O-O {[%clk 0:02:41.4]} 11. Bg5
{[%clk 0:02:53.5]} 11... Bf6 {[%clk 0:02:39.5]} 12. Bxf6 {[%clk 0:02:49.8]}
12... Qxf6 {[%clk 0:02:40.4]} 13. d5 {[%clk 0:02:44.2]} 13... Ne7 {[%clk
0:02:27]} 14. Re1 {[%clk 0:02:39.1]} 14... Bg4 {[%clk 0:02:05.7]} 15. Qd4 {[%clk
0:02:34.9]} 15... Qxd4 {[%clk 0:01:58.1]} 16. Nxd4 {[%clk 0:02:34.9]} 16... Nf5
{[%clk 0:01:53.1]} 17. Ndb5 {[%clk 0:02:33.9]} 17... a6 {[%clk 0:01:44.5]} 18.
Nxc7 {[%clk 0:02:25.9]} 18... Rac8 {[%clk 0:01:44.1]} 19. h3 {[%clk 0:01:45.7]}
19... Bxh3 {[%clk 0:01:39.1]} 20. Bxh3 {[%clk 0:01:42.9]} 20... Rxc7 {[%clk
0:01:39.8]} 21. Bxf5 {[%clk 0:01:43.3]} 21... gxf5 {[%clk 0:01:40.7]} 22. Rad1
{[%clk 0:01:26.9]} 22... Rd8 {[%clk 0:01:27.7]} 23. Rd4 {[%clk 0:01:20.4]} 23...
Kg7 {[%clk 0:01:19.3]} 24. Kg2 {[%clk 0:01:17.5]} 24... Nc4 {[%clk 0:01:04.7]}
25. Nd1 {[%clk 0:01:16.9]} 25... Kg6 {[%clk 0:00:41.8]} 26. Rh1 {[%clk
0:01:10.9]} 26... b5 {[%clk 0:00:32.4]} 27. b3 {[%clk 0:01:07.3]} 27... Nd6
{[%clk 0:00:20.7]} 28. Rdh4 {[%clk 0:01:06]} 28... Rc2 {[%clk 0:00:10.1]} 29.
Rxh7 {[%clk 0:01:00.2]} 29... Kf6 {[%clk 0:00:08]} 30. R7h6+ {[%clk 0:00:56.4]}
30... Ke5 {[%clk 0:00:07.4]} 31. Re1+ {[%clk 0:00:54]} 31... Ne4 {[%clk
0:00:06.8]} 32. Kg1 {[%clk 0:00:39.8]} 32... Kd4 {[%clk 0:00:02.2]} 33. Rc6
{[%clk 0:00:37]} 1-0

[Event "Early-Titled-Tuesday-Blitz-January-30-2024"]
[Site "Chess.com"]
[Date "2024.01.30"]
[Round "9"]
[White "K_A_S_T_O_R"]
[Black "dropstoneDP"]
[Result "0-1"]
[WhiteElo "2921"]
[BlackElo "3056"]
[TimeControl "180+1"]
[EndTime "9:48:21 PST"]
[Termination "dropstoneDP won by resignation"]

1. e4 {[%clk 0:03:00.9]} 1... e5 {[%clk 0:02:57.4]} 2. Bc4 {[%clk 0:02:56.2]}
2... Nf6 {[%clk 0:02:57.3]} 3. d3 {[%clk 0:02:56.4]} 3... c6 {[%clk 0:02:56.9]}
4. Bb3 {[%clk 0:02:52.6]} 4... d5 {[%clk 0:02:55.7]} 5. Nf3 {[%clk 0:02:51.9]}
5... Bd6 {[%clk 0:02:52.5]} 6. Bg5 {[%clk 0:02:46.4]} 6... Be6 {[%clk
0:02:28.2]} 7. Nc3 {[%clk 0:02:38.7]} 7... Nbd7 {[%clk 0:02:14.2]} 8. O-O {[%clk
0:02:32]} 8... d4 {[%clk 0:01:43.3]} 9. Bxe6 {[%clk 0:02:24.7]} 9... fxe6 {[%clk
0:01:44.2]} 10. Ne2 {[%clk 0:02:17.7]} 10... h6 {[%clk 0:01:43.8]} 11. Bxf6
{[%clk 0:02:12.8]} 11... Qxf6 {[%clk 0:01:38.5]} 12. c3 {[%clk 0:02:04.8]} 12...
dxc3 {[%clk 0:01:33.9]} 13. bxc3 {[%clk 0:02:04.1]} 13... O-O {[%clk 0:01:34.3]}
14. Ng3 {[%clk 0:02:01.3]} 14... Rad8 {[%clk 0:01:31.3]} 15. Qe2 {[%clk
0:02:00.8]} 15... Rf7 {[%clk 0:01:27.6]} 16. Rad1 {[%clk 0:01:52]} 16... Nf8
{[%clk 0:01:27.5]} 17. d4 {[%clk 0:01:44.2]} 17... Ng6 {[%clk 0:01:22.5]} 18.
Kh1 {[%clk 0:01:38.2]} 18... Rdf8 {[%clk 0:01:12.2]} 19. Qe3 {[%clk 0:01:29.4]}
19... Bc7 {[%clk 0:01:06.7]} 20. Nh5 {[%clk 0:01:15.4]} 20... Qe7 {[%clk
0:01:05.3]} 21. Ng3 {[%clk 0:01:15.6]} 21... Bb6 {[%clk 0:00:58.3]} 22. Ne2
{[%clk 0:01:13.2]} 22... exd4 {[%clk 0:00:56]} 23. cxd4 {[%clk 0:01:13.2]} 23...
e5 {[%clk 0:00:56.6]} 24. Qb3 {[%clk 0:01:07.8]} 24... exd4 {[%clk 0:00:54.8]}
25. Nexd4 {[%clk 0:01:08.2]} 25... Qxe4 {[%clk 0:00:48.9]} 26. Ne6 {[%clk
0:00:38.9]} 26... Re8 {[%clk 0:00:48.6]} 27. Rfe1 {[%clk 0:00:38]} 27... Qf5
{[%clk 0:00:41.8]} 28. Nfd4 {[%clk 0:00:25]} 28... Qxf2 {[%clk 0:00:36.1]} 29.
h3 {[%clk 0:00:20.2]} 29... Bxd4 {[%clk 0:00:35.9]} 30. Rf1 {[%clk 0:00:16.2]}
30... Qxf1+ {[%clk 0:00:35.7]} 31. Rxf1 {[%clk 0:00:17.1]} 31... Rxf1+ {[%clk
0:00:36]} 32. Kh2 {[%clk 0:00:17.8]} 32... Be5+ {[%clk 0:00:32.2]} 33. g3 {[%clk
0:00:18]} 33... Rf2+ {[%clk 0:00:32.2]} 34. Kg1 {[%clk 0:00:18.1]} 34... Rf7
{[%clk 0:00:31.3]} 35. Nc5 {[%clk 0:00:14.3]} 35... Bd4+ {[%clk 0:00:31]} 36.
Kg2 {[%clk 0:00:13.6]} 36... Bxc5 {[%clk 0:00:31.3]} 0-1

[Event "Early-Titled-Tuesday-Blitz-January-30-2024"]
[Site "Chess.com"]
[Date "2024.01.30"]
[Round "9"]
[White "falzehope0"]
[Black "Slovineanu"]
[Result "0-1"]
[WhiteElo "2379"]
[BlackElo "2446"]
[TimeControl "180+1"]
[EndTime "9:48:22 PST"]
[Termination "Slovineanu won on time"]

1. d4 {[%clk 0:03:00.9]} 1... Nf6 {[%clk 0:02:57.8]} 2. e3 {[%clk 0:03:01.8]}
2... d5 {[%clk 0:02:56.9]} 3. Be2 {[%clk 0:02:50.4]} 3... Bf5 {[%clk 0:02:50.3]}
4. Bd3 {[%clk 0:02:41.2]} 4... Bxd3 {[%clk 0:02:48.2]} 5. Qxd3 {[%clk
0:02:38.2]} 5... Nbd7 {[%clk 0:02:43.8]} 6. f4 {[%clk 0:02:35.1]} 6... e6 {[%clk
0:02:42.8]} 7. Nd2 {[%clk 0:02:28.4]} 7... Bd6 {[%clk 0:02:42.1]} 8. Ngf3 {[%clk
0:02:16.9]} 8... c5 {[%clk 0:02:41.6]} 9. c3 {[%clk 0:02:14]} 9... Rb8 {[%clk
0:02:40.7]} 10. O-O {[%clk 0:02:10.7]} 10... b5 {[%clk 0:02:37.3]} 11. Ne5
{[%clk 0:02:08.1]} 11... Qc7 {[%clk 0:02:34.4]} 12. a3 {[%clk 0:02:05.7]} 12...
O-O {[%clk 0:02:32]} 13. b4 {[%clk 0:01:51.3]} 13... cxd4 {[%clk 0:02:28.6]} 14.
cxd4 {[%clk 0:01:45.8]} 14... Rfc8 {[%clk 0:02:18.1]} 15. Nb3 {[%clk 0:01:35.4]}
15... Qc2 {[%clk 0:02:12.5]} 16. Nc5 {[%clk 0:01:21.3]} 16... Qxd3 {[%clk
0:02:12.3]} 17. Nexd3 {[%clk 0:01:17.5]} 17... Nb6 {[%clk 0:02:09.7]} 18. Ra2
{[%clk 0:01:13.3]} 18... Ne4 {[%clk 0:02:09.5]} 19. Rc2 {[%clk 0:01:10.5]} 19...
Kf8 {[%clk 0:02:00.5]} 20. f5 {[%clk 0:01:02.8]} 20... Ke7 {[%clk 0:01:57.3]}
21. Bd2 {[%clk 0:00:56.4]} 21... Nc4 {[%clk 0:01:52.7]} 22. Bc1 {[%clk
0:00:48.3]} 22... Bxc5 {[%clk 0:01:46.7]} 23. Nxc5 {[%clk 0:00:43.6]} 23... a5
{[%clk 0:01:38.4]} 24. fxe6 {[%clk 0:00:29.8]} 24... fxe6 {[%clk 0:01:34.6]} 25.
Nxe4 {[%clk 0:00:28.3]} 25... dxe4 {[%clk 0:01:34.8]} 26. Rcf2 {[%clk
0:00:23.8]} 26... Rf8 {[%clk 0:01:30.8]} 27. Rxf8 {[%clk 0:00:18.9]} 27... Rxf8
{[%clk 0:01:30.5]} 28. Rxf8 {[%clk 0:00:19.7]} 28... Kxf8 {[%clk 0:01:31]} 29.
bxa5 {[%clk 0:00:16.8]} 29... Nxa5 {[%clk 0:01:31.2]} 30. Kf2 {[%clk 0:00:16.3]}
30... Ke7 {[%clk 0:01:26.4]} 31. Kg3 {[%clk 0:00:16.4]} 31... Kd6 {[%clk
0:01:22.4]} 32. Kf4 {[%clk 0:00:15.9]} 32... Kd5 {[%clk 0:01:22.4]} 33. Bd2
{[%clk 0:00:15.2]} 33... Nc4 {[%clk 0:01:19.1]} 34. Bb4 {[%clk 0:00:15.1]} 34...
g6 {[%clk 0:01:10.4]} 35. h4 {[%clk 0:00:14.1]} 35... e5+ {[%clk 0:01:03.8]} 36.
dxe5 {[%clk 0:00:13.1]} 36... Nxe5 {[%clk 0:01:04.4]} 37. Kg5 {[%clk 0:00:09.3]}
37... Nc4 {[%clk 0:01:00.5]} 38. Kh6 {[%clk 0:00:07.2]} 38... Nxe3 {[%clk
0:01:00.1]} 39. g3 {[%clk 0:00:05.2]} 39... Nc2 {[%clk 0:00:52]} 40. Bd2 {[%clk
0:00:03]} 40... e3 {[%clk 0:00:48.3]} 41. Bc3 {[%clk 0:00:02.5]} 41... Kc4
{[%clk 0:00:43.9]} 0-1

[Event "Early-Titled-Tuesday-Blitz-January-30-2024"]
[Site "Chess.com"]
[Date "2024.01.30"]
[Round "9"]
[White "giovannibrandao7"]
[Black "Arlo2024"]
[Result "0-1"]
[WhiteElo "2116"]
[BlackElo "2268"]
[TimeControl "180+1"]
[EndTime "9:48:22 PST"]
[Termination "Arlo2024 won by resignation"]

1. e4 {[%clk 0:03:00.9]} 1... e6 {[%clk 0:02:58.7]} 2. d4 {[%clk 0:03:00.7]}
2... d5 {[%clk 0:02:59.1]} 3. Nc3 {[%clk 0:03:01.4]} 3... dxe4 {[%clk 0:03:00]}
4. Nxe4 {[%clk 0:03:01.8]} 4... Nd7 {[%clk 0:03:00.6]} 5. Nf3 {[%clk 0:03:02.1]}
5... Ngf6 {[%clk 0:03:01.5]} 6. Nxf6+ {[%clk 0:03:01.7]} 6... Nxf6 {[%clk
0:03:02.4]} 7. Bd3 {[%clk 0:03:02.1]} 7... b6 {[%clk 0:03:02.3]} 8. O-O {[%clk
0:03:02.3]} 8... Bb7 {[%clk 0:03:02.9]} 9. c3 {[%clk 0:03:02.7]} 9... Be7 {[%clk
0:03:03.2]} 10. Bf4 {[%clk 0:03:01]} 10... O-O {[%clk 0:03:03.7]} 11. Re1 {[%clk
0:03:00.6]} 11... c5 {[%clk 0:03:03.2]} 12. Qe2 {[%clk 0:02:34]} 12... Bxf3
{[%clk 0:02:58.5]} 13. Qxf3 {[%clk 0:02:33.6]} 13... cxd4 {[%clk 0:02:58.8]} 14.
Rad1 {[%clk 0:02:33.4]} 14... Qd5 {[%clk 0:02:54.5]} 15. Qxd5 {[%clk 0:01:50.1]}
15... Nxd5 {[%clk 0:02:54]} 16. Be5 {[%clk 0:01:50.8]} 16... dxc3 {[%clk
0:02:50.6]} 17. bxc3 {[%clk 0:01:51.7]} 17... Bf6 {[%clk 0:02:36]} 18. c4 {[%clk
0:01:47.9]} 18... Nb4 {[%clk 0:02:29.3]} 19. Bxf6 {[%clk 0:01:47.4]} 19... gxf6
{[%clk 0:02:26.5]} 20. Bb1 {[%clk 0:01:33.9]} 20... Rfd8 {[%clk 0:02:25.7]} 21.
a3 {[%clk 0:01:28.9]} 21... Na6 {[%clk 0:02:24.7]} 22. f3 {[%clk 0:01:23.6]}
22... Nc5 {[%clk 0:02:23.8]} 23. Kf2 {[%clk 0:01:23.7]} 23... f5 {[%clk
0:02:23.9]} 24. g4 {[%clk 0:01:18.6]} 24... fxg4 {[%clk 0:02:21]} 25. fxg4
{[%clk 0:01:19.5]} 25... h6 {[%clk 0:02:19.8]} 26. Kg3 {[%clk 0:01:17.8]} 26...
Kg7 {[%clk 0:02:17.4]} 27. h4 {[%clk 0:01:15.5]} 27... Rac8 {[%clk 0:02:15.9]}
28. g5 {[%clk 0:01:04.5]} 28... hxg5 {[%clk 0:02:15.8]} 29. hxg5 {[%clk
0:01:05.4]} 29... Na4 {[%clk 0:02:15.9]} 30. Rxd8 {[%clk 0:01:03.9]} 30... Rxd8
{[%clk 0:02:15.3]} 31. Rh1 {[%clk 0:00:55.8]} 31... Rh8 {[%clk 0:02:04.4]} 32.
Rxh8 {[%clk 0:00:35.6]} 32... Kxh8 {[%clk 0:02:04]} 33. Kf4 {[%clk 0:00:35.8]}
33... Nb2 {[%clk 0:01:44.9]} 34. Ke5 {[%clk 0:00:15.5]} 34... Nxc4+ {[%clk
0:01:38.2]} 35. Kf6 {[%clk 0:00:15.9]} 35... Kg8 {[%clk 0:01:29.6]} 36. a4
{[%clk 0:00:15.4]} 36... Ne3 {[%clk 0:01:16.7]} 37. Ke5 {[%clk 0:00:08.9]} 37...
a6 {[%clk 0:01:05.6]} 38. Kd6 {[%clk 0:00:06.3]} 38... b5 {[%clk 0:01:04.1]} 39.
axb5 {[%clk 0:00:05.8]} 39... axb5 {[%clk 0:01:05]} 40. Kc5 {[%clk 0:00:05.7]}
40... Nd5 {[%clk 0:01:01.5]} 41. Bd3 {[%clk 0:00:02.9]} 41... b4 {[%clk
0:01:01.4]} 42. Kc4 {[%clk 0:00:01.9]} 42... Kg7 {[%clk 0:00:58.5]} 43. Kd4
{[%clk 0:00:02]} 43... b3 {[%clk 0:00:54.9]} 44. Ke4 {[%clk 0:00:01.1]} 44... b2
{[%clk 0:00:53.9]} 0-1

[Event "Early-Titled-Tuesday-Blitz-January-30-2024"]
[Site "Chess.com"]
[Date "2024.01.30"]
[Round "9"]
[White "HeroWilczek"]
[Black "olawsson"]
[Result "1-0"]
[WhiteElo "2449"]
[BlackElo "2172"]
[TimeControl "180+1"]
[EndTime "9:48:23 PST"]
[Termination "HeroWilczek won on time"]

1. d4 {[%clk 0:03:00.6]} 1... d6 {[%clk 0:02:44]} 2. e4 {[%clk 0:02:59.7]} 2...
Nc6 {[%clk 0:02:42.7]} 3. Nf3 {[%clk 0:02:58.9]} 3... Nf6 {[%clk 0:02:41.7]} 4.
Nc3 {[%clk 0:02:57.9]} 4... Bg4 {[%clk 0:02:40.4]} 5. Be3 {[%clk 0:02:54.7]}
5... e6 {[%clk 0:02:40.1]} 6. h3 {[%clk 0:02:52]} 6... Bh5 {[%clk 0:02:39.7]} 7.
Be2 {[%clk 0:02:50.6]} 7... Be7 {[%clk 0:02:39]} 8. Qd2 {[%clk 0:02:51.1]} 8...
O-O {[%clk 0:02:38.9]} 9. g4 {[%clk 0:02:51.3]} 9... Bg6 {[%clk 0:02:38.3]} 10.
Bd3 {[%clk 0:02:50.4]} 10... d5 {[%clk 0:02:37.9]} 11. e5 {[%clk 0:02:49]} 11...
Ne4 {[%clk 0:02:38]} 12. Qe2 {[%clk 0:02:44.9]} 12... Nb4 {[%clk 0:02:11.4]} 13.
h4 {[%clk 0:02:36.6]} 13... h5 {[%clk 0:01:35.1]} 14. gxh5 {[%clk 0:02:24]}
14... Nxd3+ {[%clk 0:01:18.6]} 15. cxd3 {[%clk 0:02:12.4]} 15... Nxc3 {[%clk
0:01:18.6]} 16. bxc3 {[%clk 0:02:13.3]} 16... Bxh5 {[%clk 0:01:18.7]} 17. Rg1
{[%clk 0:01:52.3]} 17... Kh8 {[%clk 0:00:42.6]} 18. Bf4 {[%clk 0:01:49.3]} 18...
c5 {[%clk 0:00:19.7]} 19. Qe3 {[%clk 0:01:49.3]} 19... Qa5 {[%clk 0:00:16.5]}
20. Rc1 {[%clk 0:01:40]} 20... cxd4 {[%clk 0:00:13.9]} 21. Nxd4 {[%clk
0:01:38.7]} 21... Rac8 {[%clk 0:00:14]} 22. Kd2 {[%clk 0:01:25.1]} 22... Rxc3
{[%clk 0:00:03.3]} 23. Rxc3 {[%clk 0:01:25.4]} 23... Rc8 {[%clk 0:00:03.2]} 24.
Rc1 {[%clk 0:01:14.1]} 24... Bb4 {[%clk 0:00:03.2]} 25. Ke1 {[%clk 0:00:38.4]}
25... Rxc3 {[%clk 0:00:01.2]} 26. Rxc3 {[%clk 0:00:37.5]} 26... Bxc3+ {[%clk
0:00:01.5]} 27. Kf1 {[%clk 0:00:38.2]} 27... Qb6 {[%clk 0:00:01.8]} 28. Nb3
{[%clk 0:00:33.2]} 28... d4 {[%clk 0:00:01.2]} 29. Qg3 {[%clk 0:00:25.1]} 29...
Bg6 {[%clk 0:00:01.1]} 30. Bc1 {[%clk 0:00:21.3]} 1-0